bitfinex/quotes_BTCUSD_20241103
["timestamp","ask_amount","ask_price","bid_price","bid_amount"]
[1730600702458,0.73737751,68386.0,68385.0,0.13979704]
[1730600702919,0.73737751,68386.0,68385.0,0.13579704]
[1730600703126,0.73737751,68386.0,68385.0,0.13679704]
[1730600703338,0.73837751,68386.0,68385.0,0.13679704]
[1730600704412,0.73637751,68386.0,68385.0,0.13579704]
[1730600704615,0.73537751,68386.0,68385.0,0.13579704]
[1730600704817,0.73637751,68386.0,68385.0,0.13679704]
[1730600705040,0.78610937,68386.0,68385.0,0.15979704]
[1730600705295,0.65777751,68386.0,68385.0,0.13679704]
[1730600705522,0.97560937,68386.0,68385.0,0.13679704]
[1730600705741,0.84727751,68386.0,68385.0,0.13679704]
[1730600705950,1.07816076,68386.0,68385.0,0.13579704]
[1730600706369,1.22350806,68386.0,68385.0,0.001]
[1730600706595,1.40760789,68386.0,68385.0,0.001]
[1730600706828,0.153267,68368.0,68367.0,0.01969781]
[1730600707031,1.12485776,68368.0,68367.0,0.01969781]
[1730600707251,1.26912009,68368.0,68367.0,0.01969781]
[1730600707460,1.12485776,68368.0,68367.0,0.04258993]
[1730600708163,1.12485776,68368.0,68367.0,0.01969781]
[1730600708616,1.12485776,68368.0,68329.0,0.3016196]
[1730600708617,0.005,68351.0,68333.0,0.01593633]
[1730600708850,0.151331,68338.0,68333.0,0.01593633]
[1730600709069,1.16164799,68338.0,68333.0,0.01593633]
[1730600709276,1.16164799,68338.0,68337.0,0.5626]
[1730600709277,3.62950168,68338.0,68337.0,0.5626]
[1730600709505,0.01,68336.0,68333.0,0.01593633]
[1730600709747,0.53304,68334.0,68333.0,100.01393633]
[1730600709967,1.17494423,68334.0,68333.0,100.01393633]
[1730600710231,1.15124423,68334.0,68333.0,99.45773633]
[1730600710448,0.92854099,68334.0,68333.0,99.45773633]
[1730600710644,0.92354099,68334.0,68333.0,99.45773633]
[1730600710857,0.77220099,68334.0,68333.0,99.45773633]
[1730600711077,0.91854099,68334.0,68333.0,99.45773633]
[1730600711284,0.67220099,68334.0,68333.0,99.45773633]
[1730600711492,0.69144938,68334.0,68333.0,99.60353337]
[1730600711712,0.69144938,68334.0,68333.0,99.45773633]
[1730600711713,0.69344938,68334.0,68333.0,99.45773633]
[1730600711933,0.84278938,68334.0,68333.0,99.45873633]
[1730600712155,0.67452965,68334.0,68333.0,99.60453337]
[1730600712366,0.67452965,68334.0,68333.0,99.60353337]
[1730600712367,0.65264612,68334.0,68333.0,99.60353337]
[1730600712572,0.51018703,68334.0,68333.0,99.60353337]
[1730600712778,0.74069086,68334.0,68333.0,99.60453337]
[1730600713004,0.74068623,68334.0,68333.0,99.60453337]
[1730600713235,0.65561348,68334.0,68333.0,99.60453337]
[1730600713637,0.28953291,68334.0,68333.0,99.70573337]
[1730600713862,0.28953291,68334.0,68333.0,99.70555437]
[1730600713863,0.12714163,68334.0,68333.0,99.70555437]
[1730600714333,0.1424085,68334.0,68333.0,99.68355437]
[1730600714571,0.12914163,68334.0,68333.0,99.70655437]
[1730600714779,0.14040906,68334.0,68333.0,99.70555437]
[1730600714997,0.09983513,68334.0,68333.0,99.85538011]
[1730600715215,0.1131027,68334.0,68333.0,99.70955437]
[1730600715510,0.1131027,68334.0,68333.0,99.68255437]
[1730600715912,0.14635415,68334.0,68333.0,99.60535437]
[1730600716119,0.10183513,68334.0,68333.0,99.60535437]
[1730600716328,0.13632267,68334.0,68333.0,99.60535437]
[1730600716544,0.11509456,68334.0,68333.0,99.60535437]
[1730600716766,0.13632267,68334.0,68333.0,99.60535437]
[1730600716976,0.11309456,68334.0,68333.0,99.60435437]
[1730600717196,0.15557213,68334.0,68333.0,99.60435437]
[1730600717418,0.16468758,68334.0,68333.0,99.52962012]
[1730600717870,0.16468758,68334.0,68333.0,99.52562012]
[1730600718112,0.16468758,68334.0,68333.0,99.52662012]
[1730600718342,0.16664445,68334.0,68333.0,99.52662012]
[1730600718571,0.16664445,68334.0,68333.0,99.52562012]
[1730600718572,0.20910269,68334.0,68333.0,99.52562012]
[1730600718799,0.14343784,68334.0,68333.0,99.52562012]
[1730600719013,0.14543784,68334.0,68333.0,99.52662012]
[1730600719680,0.20910269,68334.0,68333.0,99.52662012]
[1730600719904,0.14543784,68334.0,68333.0,99.52662012]
[1730600720125,0.14543784,68334.0,68333.0,99.52562012]
[1730600720126,0.14343784,68334.0,68333.0,99.52562012]
[1730600720355,0.16464445,68334.0,68333.0,99.69444586]
[1730600720582,0.08856756,68334.0,68333.0,99.54962012]
[1730600720824,0.08856756,68334.0,68333.0,99.54596473]
[1730600721059,0.08656756,68334.0,68333.0,99.54496473]
[1730600721280,0.08656756,68334.0,68333.0,99.54596473]
[1730600721506,0.10181973,68334.0,68333.0,99.54596473]
[1730600721750,0.14542924,68334.0,68333.0,99.62006473]
[1730600721995,0.13018223,68334.0,68333.0,99.81346473]
[1730600722232,0.12759686,68334.0,68333.0,100.35960718]
[1730600722461,0.045055,68334.0,68333.0,100.35960718]
[1730600722678,0.03,68335.0,68334.0,0.16934]
[1730600722892,0.03,68335.0,68334.0,0.53358417]
[1730600723126,0.22344713,68357.0,68345.0,0.023]
[1730600723127,0.02120689,68352.0,68345.0,0.023]
[1730600723344,0.21844713,68346.0,68341.0,0.25158645]
[1730600723570,0.51208,68345.0,68343.0,0.16932]
[1730600723792,0.02120689,68344.0,68343.0,0.16932]
[1730600724006,0.02120689,68344.0,68340.0,0.1934]
[1730600724007,0.53328689,68344.0,68340.0,0.1934]
[1730600724231,0.02120689,68343.0,68340.0,0.1934]
[1730600724538,0.02120689,68343.0,68340.0,0.18961907]
[1730600724539,0.51208,68342.0,68340.0,0.18961907]
[1730600724742,0.02120689,68341.0,68340.0,0.33594607]
[1730600724948,0.53328689,68341.0,68340.0,0.58592078]
[1730600725195,0.51208,68341.0,68340.0,0.18961907]
[1730600725416,0.53330542,68341.0,68340.0,0.33541611]
[1730600725655,0.53330843,68341.0,68340.0,0.33941611]
[1730600726016,0.53330843,68341.0,68340.0,0.14979704]
[1730600726581,0.57575777,68341.0,68340.0,0.01308419]
[1730600726793,0.53330843,68341.0,68340.0,0.01308419]
[1730600727004,0.57575719,68341.0,68340.0,0.01308419]
[1730600727217,0.53330843,68341.0,68340.0,0.01308419]
[1730600727424,0.53330843,68341.0,68340.0,0.14579704]
[1730600727632,0.58275719,68341.0,68340.0,0.14979704]
[1730600727835,0.54030843,68341.0,68340.0,0.14979704]
[1730600728079,0.58275865,68341.0,68340.0,0.14579704]
[1730600728294,0.54030843,68341.0,68340.0,0.14579704]
[1730600728494,0.5807574,68341.0,68340.0,0.0644077]
[1730600728831,0.53330843,68341.0,68340.0,0.0634077]
[1730600729244,0.51208,68341.0,68340.0,0.0644077]
[1730600729459,0.53333849,68341.0,68340.0,0.0644077]
[1730600729694,0.53333849,68341.0,68340.0,0.14613091]
[1730600730246,0.53333849,68341.0,68340.0,0.14579704]
[1730600730450,0.53333849,68341.0,68340.0,0.17502704]
[1730600730700,0.54249134,68341.0,68340.0,0.14679704]
[1730600731361,0.54249134,68341.0,68340.0,0.14579704]
[1730600731568,0.54249134,68341.0,68340.0,0.14979704]
[1730600732231,0.54249134,68341.0,68340.0,0.14579704]
[1730600732436,0.54249134,68341.0,68340.0,0.11684742]
[1730600732824,0.54251816,68341.0,68340.0,0.11684742]
[1730600733281,0.54251816,68341.0,68340.0,0.13984742]
[1730600733491,0.54251816,68341.0,68340.0,0.42956596]
[1730600733866,0.54251816,68341.0,68340.0,0.85837067]
[1730600733867,0.47152457,68341.0,68340.0,0.85837067]
[1730600734019,0.27152457,68341.0,68340.0,0.85837067]
[1730600734238,0.26237172,68341.0,68340.0,0.86237067]
[1730600734667,0.289005,68341.0,68340.0,0.86037067]
[1730600734863,0.27521415,68341.0,68340.0,0.94790067]
[1730600735092,0.21844713,68357.0,68350.0,0.05223]
[1730600735306,0.21844713,68364.0,68356.0,0.292584]
[1730600735516,0.21844713,68364.0,68354.0,0.24997471]
[1730600735517,0.21844713,68364.0,68357.0,0.315581]
[1730600735745,0.512,68363.0,68361.0,0.146281]
[1730600735987,0.512,68363.0,68355.0,0.023]
[1730600736209,0.512,68363.0,68362.0,0.14579704]
[1730600736441,0.512,68363.0,68362.0,0.31507704]
[1730600736892,0.512,68363.0,68362.0,0.39817704]
[1730600737705,0.512,68363.0,68362.0,0.25189704]
[1730600737926,0.512,68363.0,68362.0,0.14579704]
[1730600738147,0.512,68363.0,68345.0,0.21844713]
[1730600738148,0.005,68362.0,68345.0,0.21844713]
[1730600738359,0.005,68362.0,68354.0,0.21844713]
[1730600738360,0.04244897,68359.0,68354.0,0.21844713]
[1730600738571,0.517,68361.0,68345.0,0.21844713]
[1730600738572,0.04244897,68356.0,68355.0,0.14579704]
[1730600738798,0.55444897,68356.0,68355.0,0.14579704]
[1730600739398,0.005,68354.0,68345.0,0.21944713]
[1730600739603,0.55449656,68353.0,68346.0,0.14579704]
[1730600739994,0.04249656,68352.0,68346.0,0.14579704]
[1730600740228,0.04249656,68349.0,68346.0,0.14579704]
[1730600740429,0.002,68347.0,68346.0,0.14579704]
[1730600740606,0.512,68347.0,68346.0,0.14579704]
[1730600741283,0.57574484,68347.0,68346.0,0.14579704]
[1730600741487,0.512,68347.0,68346.0,0.14579704]
[1730600741696,0.57774484,68347.0,68346.0,0.14579704]
[1730600741909,0.57774484,68347.0,68340.0,0.000819]
[1730600741910,0.005,68343.0,68340.0,0.000819]
[1730600742121,0.55450493,68342.0,68341.0,0.36424417]
[1730600742351,0.55450493,68342.0,68340.0,0.000819]
[1730600742352,0.005,68341.0,68340.0,0.000819]
[1730600742577,0.517,68341.0,68340.0,0.000819]
[1730600742792,0.65738059,68341.0,68340.0,0.000819]
[1730600743414,1.24246574,68341.0,68340.0,0.000819]
[1730600743635,1.18328027,68341.0,68340.0,0.000819]
[1730600744044,1.18328027,68341.0,68333.0,99.37616769]
[1730600744045,0.012,68334.0,68333.0,99.37616769]
[1730600744320,0.81572059,68334.0,68333.0,99.37616769]
[1730600744540,1.14342056,68334.0,68333.0,99.37616769]
[1730600745049,1.2922708,68334.0,68333.0,99.22965678]
[1730600745354,1.16474027,68334.0,68333.0,99.22965678]
[1730600745562,1.13842056,68334.0,68333.0,99.22965678]
[1730600745676,0.89208056,68334.0,68333.0,99.22965678]
[1730600745890,1.01965177,68334.0,68333.0,99.22965678]
[1730600746092,1.42178881,68334.0,68333.0,99.22965678]
[1730600746320,1.2942176,68334.0,68333.0,99.22965678]
[1730600746522,1.3979176,68334.0,68333.0,99.22965678]
[1730600746732,1.3979176,68334.0,68333.0,99.02965678]
[1730600746733,1.5670176,68334.0,68333.0,99.02965678]
[1730600746933,1.4029176,68334.0,68333.0,98.47345678]
[1730600747194,1.43023008,68334.0,68333.0,98.47345678]
[1730600747525,1.41623008,68334.0,68333.0,98.47345678]
[1730600747735,1.41622175,68334.0,68333.0,98.47345678]
[1730600747931,1.41622175,68334.0,68333.0,97.85444367]
[1730600747932,1.43022175,68334.0,68333.0,97.85444367]
[1730600748136,1.50140235,68334.0,68333.0,97.808646]
[1730600748349,1.43922175,68334.0,68333.0,97.808646]
[1730600748553,1.4029176,68334.0,68333.0,97.74652582]
[1730600748748,1.4169176,68334.0,68333.0,97.74652582]
[1730600749533,1.4880982,68334.0,68333.0,97.74652582]
[1730600749950,1.4650982,68334.0,68333.0,97.74652582]
[1730600750657,1.4169176,68334.0,68333.0,97.22711271]
[1730600750872,1.4650982,68334.0,68333.0,97.22711271]
[1730600751291,1.4169176,68334.0,68333.0,97.22711271]
[1730600751441,1.50697787,68334.0,68333.0,97.22711271]
[1730600751649,1.4650982,68334.0,68333.0,97.22711271]
[1730600751854,1.3954176,68334.0,68333.0,97.22711271]
[1730600752066,1.522874,68334.0,68333.0,97.22711271]
[1730600752236,1.3954176,68334.0,68333.0,97.22711271]
[1730600752600,1.54816977,68334.0,68333.0,97.22711271]
[1730600752826,1.10580728,68334.0,68333.0,97.22711271]
[1730600753030,1.08680728,68334.0,68333.0,97.22711271]
[1730600753232,1.10080728,68334.0,68333.0,97.22711271]
[1730600753711,1.10580728,68334.0,68333.0,97.22711271]
[1730600753918,1.08680728,68334.0,68333.0,97.22711271]
[1730600754122,1.10580728,68334.0,68333.0,97.22711271]
[1730600754700,1.09180728,68334.0,68333.0,97.22711271]
[1730600754896,1.10580728,68334.0,68333.0,97.22711271]
[1730600756835,1.10749765,68334.0,68333.0,97.22711271]
[1730600757010,1.35829469,68334.0,68333.0,97.22711271]
[1730600757283,1.35829469,68334.0,68333.0,97.22476882]
[1730600757499,1.40022103,68334.0,68333.0,96.57953009]
[1730600757734,1.4651007,68334.0,68333.0,96.57953009]
[1730600757923,1.5132813,68334.0,68333.0,96.57953009]
[1730600758260,1.4511007,68334.0,68333.0,96.57953009]
[1730600758469,2.0356733,68334.0,68333.0,96.57953009]
[1730600758680,2.09057793,68334.0,68333.0,96.57953009]
[1730600759484,2.05639733,68334.0,68333.0,96.57953009]
[1730600759731,2.10457793,68334.0,68333.0,96.56433481]
[1730600760146,2.09221593,68334.0,68333.0,96.56433481]
[1730600760363,2.04403533,68334.0,68333.0,96.56433481]
[1730600760572,1.67939131,68334.0,68333.0,96.48555142]
[1730600760787,1.67939131,68334.0,68333.0,96.33898175]
[1730600760788,3.28073628,68334.0,68333.0,96.33898175]
[1730600760982,3.48179291,68334.0,68333.0,96.33898175]
[1730600761211,3.47263206,68334.0,68333.0,96.33898175]
[1730600761427,3.48663206,68334.0,68333.0,96.33898175]
[1730600761633,3.41726061,68334.0,68333.0,96.33898175]
[1730600762254,3.41726061,68334.0,68333.0,95.53240103]
[1730600762662,2.84722961,68334.0,68333.0,95.53240103]
[1730600762840,2.95476161,68334.0,68333.0,95.53240103]
[1730600763043,2.96876161,68334.0,68333.0,95.53240103]
[1730600763286,2.86122961,68334.0,68333.0,95.53240103]
[1730600763527,2.94725761,68334.0,68333.0,95.53240103]
[1730600763732,2.84722961,68334.0,68333.0,95.53240103]
[1730600764024,1.92729331,68334.0,68333.0,95.53240103]
[1730600764163,1.9681235,68334.0,68333.0,95.53240103]
[1730600764363,1.9541235,68334.0,68333.0,95.53240103]
[1730600764595,1.92624383,68334.0,68333.0,95.53240103]
[1730600764966,1.9681235,68334.0,68333.0,94.72582031]
[1730600765564,1.9911235,68334.0,68333.0,94.72582031]
[1730600765766,1.91224383,68334.0,68333.0,94.72582031]
[1730600766256,1.9681235,68334.0,68333.0,94.72582031]
[1730600766609,1.9541235,68334.0,68333.0,94.72582031]
[1730600767081,1.9681235,68334.0,68333.0,94.72582031]
[1730600767294,1.9785235,68334.0,68333.0,94.72582031]
[1730600767464,2.01102116,68334.0,68333.0,94.72582031]
[1730600767663,2.03227177,68334.0,68333.0,94.72582031]
[1730600767861,2.02277411,68334.0,68333.0,94.45172683]
[1730600768066,2.33575111,68334.0,68333.0,94.45172683]
[1730600768268,2.35814151,68334.0,68333.0,94.45172683]
[1730600768486,2.35835846,68334.0,68333.0,94.45172683]
[1730600768722,2.19179346,68334.0,68333.0,94.45172683]
[1730600768933,2.51569019,68334.0,68333.0,94.45172683]
[1730600769140,1.99915555,68334.0,68333.0,94.45172683]
[1730600769360,2.04565321,68334.0,68333.0,94.45172683]
[1730600769575,1.95727588,68334.0,68333.0,94.45172683]
[1730600769786,2.08442052,68334.0,68333.0,94.45172683]
[1730600769960,2.09306239,68334.0,68333.0,94.45172683]
[1730600770413,1.97057939,68334.0,68333.0,94.45172683]
[1730600770559,1.97057939,68334.0,68333.0,94.40592645]
[1730600771006,2.31652139,68334.0,68333.0,93.59934573]
[1730600771208,2.19779306,68334.0,68333.0,93.59934573]
[1730600771660,2.09365539,68334.0,68333.0,93.59934573]
[1730600771880,1.97057939,68334.0,68333.0,93.59934573]
[1730600772441,1.96017939,68334.0,68333.0,93.59934573]
[1730600772861,1.96241195,68334.0,68333.0,93.59934573]
[1730600773061,1.4177587,68334.0,68333.0,93.59934573]
[1730600773370,1.58381461,68334.0,68333.0,93.59934573]
[1730600773841,1.58381461,68334.0,68333.0,93.60575459]
[1730600774054,1.58381461,68334.0,68333.0,92.79917387]
[1730600774059,1.56981461,68334.0,68333.0,92.79917387]
[1730600774478,1.66981461,68334.0,68333.0,92.79917387]
[1730600775238,1.68381461,68334.0,68333.0,92.79917387]
[1730600775654,1.68381461,68334.0,68333.0,92.76620154]
[1730600776039,1.66981461,68334.0,68333.0,92.76620154]
[1730600776246,1.68381461,68334.0,68333.0,92.76620154]
[1730600776612,1.66256551,68334.0,68333.0,92.76620154]
[1730600776983,1.66272501,68334.0,68333.0,91.95962082]
[1730600777188,1.66272501,68334.0,68333.0,92.20959553]
[1730600777669,1.68572501,68334.0,68333.0,92.20959553]
[1730600778269,1.78993721,68334.0,68333.0,92.20959553]
[1730600778414,1.77593721,68334.0,68333.0,92.20959553]
[1730600778653,1.82239937,68334.0,68333.0,92.20959553]
[1730600778886,1.70922267,68334.0,68333.0,92.20959553]
[1730600779093,1.83639178,68334.0,68333.0,92.20959553]
[1730600779450,1.82239178,68334.0,68333.0,92.20959553]
[1730600779624,1.81289412,68334.0,68333.0,92.20959553]
[1730600779847,1.73222267,68334.0,68333.0,92.20959553]
[1730600779969,1.71822267,68334.0,68333.0,92.20959553]
[1730600780179,1.67172501,68334.0,68333.0,92.20959553]
[1730600780601,1.67172501,68334.0,68333.0,92.16379042]
[1730600781439,1.54573444,68334.0,68333.0,92.16379042]
[1730600781700,1.67848845,68334.0,68333.0,92.16379042]
[1730600781897,1.72498611,68334.0,68333.0,92.16379042]
[1730600782088,1.66448845,68334.0,68333.0,92.16379042]
[1730600782322,1.90548845,68334.0,68333.0,92.16379042]
[1730600782528,1.80548845,68334.0,68333.0,92.16379042]
[1730600782849,1.80548845,68334.0,68333.0,91.66474632]
[1730600782850,2.51721745,68334.0,68333.0,91.66474632]
[1730600783052,2.84097257,68334.0,68333.0,90.91877633]
[1730600783367,2.57111349,68334.0,68333.0,90.80951339]
[1730600783609,2.67111349,68334.0,68333.0,90.80951339]
[1730600783830,2.61337649,68334.0,68333.0,90.80951339]
[1730600784039,3.27418016,68334.0,68333.0,90.80951339]
[1730600784251,3.16463116,68334.0,68333.0,90.80951339]
[1730600784459,3.27885316,68334.0,68333.0,90.80951339]
[1730600784806,3.29285316,68334.0,68333.0,90.80951339]
[1730600785066,2.63204949,68334.0,68333.0,90.8069835]
[1730600785219,2.66580179,68334.0,68333.0,90.6606435]
[1730600785669,2.66580179,68334.0,68333.0,90.5435715]
[1730600785670,2.67650423,68334.0,68333.0,90.5435715]
[1730600785895,2.67650423,68334.0,68333.0,90.5143035]
[1730600785896,3.37650423,68334.0,68333.0,90.5143035]
[1730600786610,3.37650423,68334.0,68333.0,90.4264995]
[1730600786825,3.32875193,68334.0,68333.0,90.4264995]
[1730600787267,3.5585308,68334.0,68333.0,90.4264995]
[1730600787494,3.32875193,68334.0,68333.0,90.4264995]
[1730600788150,5.04146183,68334.0,68333.0,90.4264995]
[1730600788346,5.41136676,68334.0,68333.0,90.4264995]
[1730600788549,5.64209457,68334.0,68333.0,90.4264995]
[1730600788754,5.53687257,68334.0,68333.0,90.4264995]
[1730600788990,5.30614476,68334.0,68333.0,90.4264995]
[1730600789211,6.26408489,68334.0,68333.0,89.38413028]
[1730600789368,6.46998635,68334.0,68333.0,88.99934775]
[1730600789573,6.4657092,68334.0,68333.0,88.66873575]
[1730600789776,6.69622399,68334.0,68333.0,88.55166375]
[1730600790010,6.70116306,68334.0,68333.0,88.55166375]
[1730600790221,6.70116306,68334.0,68333.0,88.40524004]
[1730600790432,6.63941076,68334.0,68333.0,88.40524004]
[1730600790652,6.68716306,68334.0,68333.0,88.26299325]
[1730600790922,6.70116306,68334.0,68333.0,88.17805725]
[1730600791122,6.70116306,68334.0,68333.0,88.07724173]
[1730600791295,6.68716306,68334.0,68333.0,88.07724173]
[1730600791640,6.65341076,68334.0,68333.0,88.07724173]
[1730600791848,6.65341076,68334.0,68333.0,88.01870573]
[1730600792043,6.63941076,68334.0,68333.0,87.98943773]
[1730600792242,6.63941076,68334.0,68333.0,87.12432101]
[1730600792243,7.13936018,68334.0,68333.0,87.12432101]
[1730600792462,7.15476373,68334.0,68333.0,87.12432101]
[1730600792891,7.11468714,68334.0,68333.0,86.95305096]
[1730600793102,7.11468714,68334.0,68333.0,86.87057371]
[1730600793302,7.11468714,68334.0,68333.0,86.42951371]
[1730600793522,8.26263944,68334.0,68333.0,85.98764326]
[1730600793784,8.52143944,68334.0,68333.0,85.92910726]
[1730600793983,9.00937934,68334.0,68333.0,85.82253427]
[1730600794436,8.52481319,68334.0,68333.0,85.82253427]
[1730600794591,8.47706089,68334.0,68333.0,85.76833593]
[1730600794801,8.96411577,68334.0,68333.0,85.64148655]
[1730600795005,8.96411577,68334.0,68333.0,84.83490583]
[1730600795006,8.53881319,68334.0,68333.0,84.83490583]
[1730600795362,8.52481319,68334.0,68333.0,84.83490583]
[1730600795768,8.53881319,68334.0,68333.0,84.80563783]
[1730600795970,8.53881319,68334.0,68333.0,84.69290349]
[1730600796191,8.62634319,68334.0,68333.0,84.66363549]
[1730600796417,8.61191764,68334.0,68333.0,84.66363549]
[1730600796624,8.50138764,68334.0,68333.0,84.66363549]
[1730600796788,8.18496358,68334.0,68333.0,84.66363549]
[1730600797176,8.22858764,68334.0,68333.0,84.18517149]
[1730600797400,8.54913994,68334.0,68333.0,84.12663549]
[1730600797643,8.53513994,68334.0,68333.0,84.12663549]
[1730600797846,8.3650957,68334.0,68333.0,84.06809949]
[1730600798028,8.4020957,68334.0,68333.0,83.24518195]
[1730600798394,8.3880957,68334.0,68333.0,83.24518195]
[1730600798594,8.22314311,68334.0,68333.0,83.21591395]
[1730600798801,8.23714311,68334.0,68333.0,83.09884195]
[1730600799221,8.23714311,68334.0,68333.0,82.38976813]
[1730600799222,8.86782441,68334.0,68333.0,82.38976813]
[1730600799426,8.86790398,68334.0,68333.0,82.15057351]
[1730600799746,8.86790398,68334.0,68333.0,82.12130551]
[1730600799930,8.86790398,68334.0,68333.0,81.94104516]
[1730600800304,8.86790398,68334.0,68333.0,81.33458945]
[1730600800654,8.86790398,68334.0,68333.0,81.30532145]
[1730600800877,8.86790398,68334.0,68333.0,81.14939945]
[1730600801036,8.96005698,68334.0,68333.0,78.51293369]
[1730600801271,7.90250471,68334.0,68333.0,77.80879909]
[1730600801536,7.90250471,68334.0,68333.0,77.18002884]
[1730600801537,6.14681436,68334.0,68333.0,77.18002884]
[1730600801769,7.48346149,68334.0,68333.0,73.93153084]
[1730600802011,9.39284399,68334.0,68333.0,73.22800815]
[1730600802241,9.86084527,68334.0,68333.0,72.67702727]
[1730600802490,9.62077573,68334.0,68333.0,71.71294156]
[1730600802717,8.93486823,68334.0,68333.0,71.23824227]
[1730600802953,9.23949006,68334.0,68333.0,71.08475322]
[1730600803192,9.23949006,68334.0,68333.0,71.04072684]
[1730600803193,13.32288106,68334.0,68333.0,71.04072684]
[1730600803425,13.32288106,68334.0,68333.0,70.85307923]
[1730600803426,13.31656762,68334.0,68333.0,70.85307923]
[1730600803650,12.81704817,68334.0,68333.0,70.58818514]
[1730600803882,12.81704817,68334.0,68333.0,70.57215096]
[1730600803883,12.76287938,68334.0,68333.0,70.57215096]
[1730600804153,10.72828967,68334.0,68333.0,70.45570396]
[1730600804384,9.24775247,68334.0,68333.0,70.16296396]
[1730600804617,9.3651095,68334.0,68333.0,69.75406115]
[1730600804840,9.3791095,68334.0,68333.0,69.75406115]
[1730600805068,9.34470416,68334.0,68333.0,69.75406115]
[1730600805324,7.99001416,68334.0,68333.0,69.75406115]
[1730600805562,7.82248616,68334.0,68333.0,69.75406115]
[1730600805782,7.78340416,68334.0,68333.0,69.75406115]
[1730600805986,7.81237116,68334.0,68333.0,69.75406115]
[1730600806221,7.81237116,68334.0,68333.0,69.73113872]
[1730600806705,7.89837116,68334.0,68333.0,69.73113872]
[1730600807161,7.91237116,68334.0,68333.0,69.73113872]
[1730600807393,6.45914834,68334.0,68333.0,69.45549876]
[1730600807624,6.46814834,68334.0,68333.0,69.45549876]
[1730600807847,6.48214834,68334.0,68333.0,69.45549876]
[1730600808073,6.44151747,68334.0,68333.0,69.35468674]
[1730600808295,6.40451747,68334.0,68333.0,69.35468674]
[1730600808735,5.71851747,68334.0,68333.0,69.35468674]
[1730600808966,5.34192118,68334.0,68333.0,69.35468674]
[1730600809475,6.04027487,68334.0,68333.0,69.35468674]
[1730600809699,6.41687116,68334.0,68333.0,69.35468674]
[1730600809918,6.39247116,68334.0,68333.0,69.35468674]
[1730600810140,6.40287116,68334.0,68333.0,69.35468674]
[1730600810397,6.41687116,68334.0,68333.0,69.35468674]
[1730600810622,6.40287116,68334.0,68333.0,69.35468674]
[1730600811043,6.33622748,68334.0,68333.0,69.35468674]
[1730600811274,6.35407967,68334.0,68333.0,69.35468674]
[1730600811506,6.65511867,68334.0,68333.0,69.35468674]
[1730600811768,7.06808267,68334.0,68333.0,69.35468674]
[1730600811956,7.14690808,68334.0,68333.0,68.95795474]
[1730600812357,7.41970808,68334.0,68333.0,68.40927363]
[1730600812616,7.37788267,68334.0,68333.0,68.40927363]
[1730600812883,7.37788267,68334.0,68333.0,68.16161061]
[1730600813106,7.51584719,68334.0,68333.0,66.59910032]
[1730600813333,7.47771503,68334.0,68333.0,66.07968721]
[1730600813525,7.49171503,68334.0,68333.0,66.07968721]
[1730600814009,7.49171503,68334.0,68333.0,66.02115121]
[1730600814010,7.47771503,68334.0,68333.0,66.02115121]
[1730600814276,7.49171503,68334.0,68333.0,65.99188321]
[1730600814501,7.56546361,68334.0,68333.0,65.93334721]
[1730600814719,7.55146361,68334.0,68333.0,65.87481121]
[1730600814941,7.47771503,68334.0,68333.0,65.84554321]
[1730600815165,7.41172282,68334.0,68333.0,65.81627521]
[1730600815391,7.37788267,68334.0,68333.0,65.68905721]
[1730600815624,7.40934798,68334.0,68333.0,65.68905721]
[1730600815849,7.36373156,68334.0,68333.0,65.68905721]
[1730600816077,7.37373156,68334.0,68333.0,65.68905721]
[1730600816753,6.98313527,68334.0,68333.0,65.68905721]
[1730600816978,6.97313527,68334.0,68333.0,65.68905721]
[1730600817197,6.99713527,68334.0,68333.0,65.68905721]
[1730600817416,6.99713527,68334.0,68333.0,65.69863332]
[1730600817636,6.98313527,68334.0,68333.0,65.69863332]
[1730600817863,6.99713527,68334.0,68333.0,65.69863332]
[1730600818087,6.89713527,68334.0,68333.0,65.69863332]
[1730600818552,6.63928427,68334.0,68333.0,65.69863332]
[1730600818766,7.25101927,68334.0,68333.0,65.69863332]
[1730600819211,7.29539506,68334.0,68333.0,65.69863332]
[1730600819434,7.39539506,68334.0,68333.0,65.69863332]
[1730600819886,7.40939506,68334.0,68333.0,65.69863332]
[1730600820328,3.59828037,68334.0,68333.0,65.69863332]
[1730600820550,2.45445203,68334.0,68333.0,65.69863332]
[1730600820783,2.35552503,68334.0,68333.0,65.69863332]
[1730600820989,2.86904603,68334.0,68333.0,65.89113332]
[1730600821196,2.89344603,68334.0,68333.0,65.89113332]
[1730600821602,2.87944603,68334.0,68333.0,65.89113332]
[1730600822077,2.27944603,68334.0,68333.0,65.89113332]
[1730600822297,2.18649434,68334.0,68333.0,65.89113332]
[1730600822525,1.98719458,68334.0,68333.0,65.89113332]
[1730600822755,1.87689458,68334.0,68333.0,65.89113332]
[1730600822977,1.88089458,68334.0,68333.0,65.97263332]
[1730600823239,0.98155458,68334.0,68333.0,65.97263332]
[1730600823480,1.11389458,68334.0,68333.0,65.97263332]
[1730600823719,1.10389458,68334.0,68333.0,65.97263332]
[1730600823955,1.02424609,68334.0,68333.0,65.97263332]
[1730600824196,0.42551658,68334.0,68333.0,66.11523832]
[1730600824448,0.12161658,68334.0,68333.0,65.83485425]
[1730600824683,0.13061658,68334.0,68333.0,65.83485425]
[1730600824915,0.13561658,68334.0,68333.0,65.83485425]
[1730600825400,0.13061658,68334.0,68333.0,65.83485425]
[1730600826063,0.02,68335.0,68333.0,66.08532654]
[1730600826288,0.30729073,68337.0,68334.0,0.18535718]
[1730600826586,0.10778884,68335.0,68333.0,65.69405721]
[1730600826811,0.058568,68353.0,68338.0,0.005]
[1730600827053,0.058568,68353.0,68342.0,0.005]
[1730600827307,0.21844713,68363.0,68345.0,0.005]
[1730600827308,0.5121,68352.0,68345.0,0.005]
[1730600827522,0.08510419,68346.0,68345.0,0.005]
[1730600827761,0.5121,68352.0,68345.0,0.40126933]
[1730600828014,0.21844713,68363.0,68362.0,0.25047229]
[1730600828290,0.21844713,68363.0,68362.0,0.14579704]
[1730600828517,0.005,68369.0,68362.0,0.39626933]
[1730600828752,0.005,68369.0,68368.0,0.25047229]
[1730600828980,0.005,68369.0,68368.0,0.15223818]
[1730600829696,0.005,68378.0,68368.0,0.15223818]
[1730600829917,0.2928,68382.0,68368.0,0.15223818]
[1730600829918,0.21844713,68377.0,68376.0,0.25047229]
[1730600830167,0.005,68377.0,68376.0,0.39626933]
[1730600830399,0.08479562,68378.0,68376.0,0.39626933]
[1730600830626,0.08479562,68379.0,68377.0,0.14579704]
[1730600830855,0.08479562,68380.0,68377.0,0.14579704]
[1730600831293,0.51186,68379.0,68377.0,0.14579704]
[1730600831728,0.005,68378.0,68377.0,0.14579704]
[1730600831954,0.58038261,68378.0,68377.0,0.14579704]
[1730600832182,0.58037137,68378.0,68377.0,0.14579704]
[1730600832430,0.51686,68378.0,68377.0,0.14579704]
[1730600832648,0.005,68366.0,68365.0,0.21844713]
[1730600832857,0.005,68366.0,68346.0,0.22044713]